fUST/lending_fUST_20250626
["ID","MTS","AMOUNT","RATE_DAILY","PERIOD"]
[367823511,1750936253858,-460.0,0.00018356,2]
[367823512,1750936253868,-460.0,0.00018356,2]
[367823513,1750936253877,-460.0,0.00018356,2]
[367823514,1750936253886,-489.26,0.00018356,2]
[367823515,1750936253896,-640.74,0.00018356,2]
[367823516,1750936253905,-1849.57,0.00018356,2]
[367823517,1750936253915,-1090.54,0.00018356,2]
[367823518,1750936253924,-460.0,0.00018356,2]
[367823519,1750936253933,-460.0,0.00018356,2]
[367823520,1750936253942,-2004.58161438,0.00018383,2]
[367823521,1750936253952,-496.48855278,0.0001853,2]
[367823522,1750936253961,-1113.77210429,0.00018611,2]
[367823523,1750936253970,-1002.78026123,0.00018611,2]
[367823524,1750936253979,-2004.58161438,0.00018624,2]
[367823525,1750936253988,-460.0,0.0001863,2]
[367823526,1750936253998,-460.0,0.0001863,2]
[367823527,1750936254007,-460.0,0.0001863,2]
[367823528,1750936254016,-463.39591802,0.0001863,2]
[367823529,1750936254025,-476.93,0.0001863,2]
[367823530,1750936254034,-460.0,0.0001863,2]
[367823531,1750936254043,-460.0,0.0001863,2]
[367823532,1750936254052,-460.0,0.0001863,2]
[367823533,1750936254061,-460.0,0.0001863,2]
[367823534,1750936254070,-460.0,0.0001863,2]
[367823535,1750936254080,-460.0,0.0001863,2]
[367823536,1750936254089,-460.0,0.0001863,2]
[367823537,1750936254098,-597.38,0.0001863,2]
[367823538,1750936254107,-460.0,0.0001863,2]
[367823539,1750936254117,-460.0,0.0001863,2]
[367823540,1750936254126,-460.0,0.0001863,2]
[367823541,1750936254135,-460.0,0.0001863,2]
[367823542,1750936254145,-460.0,0.0001863,2]
[367823543,1750936254154,-460.0,0.0001863,2]
[367823544,1750936254163,-463.0,0.0001863,2]
[367823545,1750936254173,-3070.64,0.0001863,2]
[367823546,1750936254183,-460.0,0.0001863,2]
[367823547,1750936254192,-1127.46,0.0001863,2]
[367823548,1750936254201,-500.1,0.0001863,2]
[367823549,1750936254210,-460.0,0.0001863,2]
[367823550,1750936254220,-486.34,0.0001863,2]
[367823551,1750936254229,-460.0,0.0001863,2]
[367823552,1750936254239,-502.15,0.0001863,2]
[367823553,1750936254250,-741.01,0.0001863,2]
[367823554,1750936254260,-460.0,0.0001863,2]
[367823555,1750936254269,-460.0,0.0001863,2]
[367823556,1750936254278,-585.48,0.0001863,2]
[367823557,1750936254287,-460.0,0.0001863,2]
[367823558,1750936254297,-1171.0,0.0001863,2]
[367823559,1750936254306,-1274.93,0.0001863,2]
[367823560,1750936254316,-460.0,0.0001863,2]
[367823561,1750936254325,-1936.68,0.0001863,2]
[367823562,1750936254335,-460.0,0.0001863,2]
[367823563,1750936254344,-658.14,0.0001863,2]
[367823564,1750936254353,-495.95,0.0001863,2]
[367823565,1750936254362,-460.0,0.0001863,2]
[367823566,1750936254371,-506.76,0.0001863,2]
[367823567,1750936254380,-660.59,0.0001863,2]
[367823568,1750936254389,-460.0,0.0001863,2]
[367823569,1750936254398,-604.08,0.0001863,2]
[367823570,1750936254407,-2008.32,0.0001863,2]
[367823571,1750936254417,-461.68,0.0001863,2]
[367823572,1750936254426,-2634.32,0.0001863,2]
[367823573,1750936254435,-460.0,0.0001863,2]
[367823574,1750936254445,-936.25,0.0001863,2]
[367823575,1750936254454,-1291.06,0.0001863,2]
[367823576,1750936254464,-461.71,0.0001863,2]
[367823577,1750936254474,-460.0,0.0001863,2]
[367823578,1750936254484,-982.95,0.0001863,2]
[367823579,1750936254493,-460.0,0.0001863,2]
[367823580,1750936254502,-460.0,0.0001863,2]
[367823581,1750936254511,-460.0,0.0001863,2]
[367823582,1750936254520,-1441.22,0.0001863,2]
[367823583,1750936254530,-460.0,0.0001863,2]
[367823584,1750936254540,-460.0,0.0001863,2]
[367823585,1750936254549,-460.0,0.0001863,2]
[367823586,1750936254560,-1583.9,0.0001863,2]
[367823587,1750936254569,-460.0,0.0001863,2]
[367823588,1750936254578,-1308.06,0.0001863,2]
[367823589,1750936254587,-1242.42,0.0001863,2]
[367823590,1750936254596,-630.68,0.0001863,2]
[367823591,1750936254605,-460.0,0.0001863,2]
[367823592,1750936254615,-460.0,0.0001863,2]
[367823593,1750936254624,-531.49,0.0001863,2]
[367823594,1750936254634,-989.78,0.0001863,2]
[367823595,1750936254643,-460.0,0.0001863,2]
[367823596,1750936254653,-460.0,0.0001863,2]
[367823597,1750936254662,-460.0,0.0001863,2]
[367823598,1750936254672,-460.0,0.0001863,2]
[367823599,1750936254682,-2974.27,0.0001863,2]
[367823600,1750936254692,-460.0,0.0001863,2]
[367823601,1750936254701,-479.01,0.0001863,2]
[367823602,1750936254711,-922.68,0.0001863,2]
[367823603,1750936254721,-1630.67,0.0001863,2]
[367823604,1750936254730,-497.3,0.0001863,2]
[367823605,1750936254739,-694.28,0.0001863,2]
[367823606,1750936254748,-460.0,0.0001863,2]
[367823607,1750936254760,-460.0,0.0001863,2]
[367823608,1750936254769,-460.0,0.0001863,2]
[367823609,1750936254778,-489.26,0.0001863,2]
[367823610,1750936254787,-640.74,0.0001863,2]
[367823611,1750936254796,-1849.57,0.0001863,2]
[367823612,1750936254806,-1090.54,0.0001863,2]
[367823613,1750936254815,-460.0,0.0001863,2]
[367823614,1750936254825,-460.0,0.0001863,2]
[367823615,1750936254834,-1500.0,0.00018664,2]
[367823616,1750936254843,-1504.79287362,0.00018741,2]
[367823617,1750936254853,-460.0,0.0001875,2]
[367823618,1750936254864,-501.7024217,0.0001877,2]
[367823619,1750936254875,-2004.58161438,0.00018866,2]
[367823620,1750936254886,-1076.51811168,0.000189,2]
[367823621,1750936254897,-473.12,0.00018904,2]
[367823622,1750936254906,-460.0,0.00018904,2]
[367823623,1750936254917,-460.0,0.00018904,2]
[367823624,1750936254926,-476.93,0.00018904,2]
[367823625,1750936254936,-460.0,0.00018904,2]
[367823626,1750936254947,-460.0,0.00018904,2]
[367823627,1750936254957,-460.0,0.00018904,2]
[367823628,1750936254967,-460.0,0.00018904,2]
[367823629,1750936254978,-460.0,0.00018904,2]
[367823630,1750936254987,-460.0,0.00018904,2]
[367823631,1750936254998,-460.0,0.00018904,2]
[367823632,1750936255008,-597.38,0.00018904,2]
[367823633,1750936255017,-460.0,0.00018904,2]
[367823634,1750936255027,-460.0,0.00018904,2]
[367823635,1750936255039,-236.35,0.00018904,2]
[367823636,1750936255049,-460.0,0.00018904,2]
[367823637,1750936255058,-460.0,0.00018904,2]
[367823638,1750936255067,-460.0,0.00018904,2]
[367823639,1750936255077,-463.0,0.00018904,2]
[367823640,1750936255086,-3070.64,0.00018904,2]
[367823641,1750936255095,-460.0,0.00018904,2]
[367823642,1750936255104,-1127.46,0.00018904,2]
[367823643,1750936255114,-500.1,0.00018904,2]
[367823644,1750936255123,-460.0,0.00018904,2]
[367823645,1750936255133,-486.34,0.00018904,2]
[367823646,1750936255143,-460.0,0.00018904,2]
[367823647,1750936255152,-502.15,0.00018904,2]
[367823648,1750936255161,-741.01,0.00018904,2]
[367823649,1750936255171,-371.62993064,0.00018904,2]
[367823650,1750936255180,-460.0,0.00018904,2]
[367823651,1750936255189,-585.48,0.00018904,2]
[367823652,1750936255199,-460.0,0.00018904,2]
[367823653,1750936255208,-1171.0,0.00018904,2]
[367823654,1750936255217,-1274.93,0.00018904,2]
[367823655,1750936255228,-460.0,0.00018904,2]
[367823656,1750936255241,-1936.68,0.00018904,2]
[367823657,1750936255253,-460.0,0.00018904,2]
[367823658,1750936255263,-658.14,0.00018904,2]
[367823659,1750936255273,-495.95,0.00018904,2]
[367823660,1750936255283,-460.0,0.00018904,2]
[367823661,1750936255294,-506.76,0.00018904,2]
[367823662,1750936255304,-660.59,0.00018904,2]
[367823663,1750936255314,-460.0,0.00018904,2]
[367823664,1750936255324,-604.08,0.00018904,2]
[367823665,1750936255334,-2008.32,0.00018904,2]
[367823666,1750936255343,-461.68,0.00018904,2]
[367823667,1750936255352,-2634.32,0.00018904,2]
[367823668,1750936255362,-525.89611994,0.00018904,2]
[367823669,1750936255371,-936.25,0.00018904,2]
[367823670,1750936255381,-1291.06,0.00018904,2]
[367823671,1750936255391,-461.71,0.00018904,2]
[367823672,1750936255400,-460.0,0.00018904,2]
[367823673,1750936255409,-982.95,0.00018904,2]
[367823674,1750936255418,-460.0,0.00018904,2]
[367823675,1750936255428,-460.0,0.00018904,2]
[367823676,1750936255439,-460.0,0.00018904,2]
[367823677,1750936255448,-1441.22,0.00018904,2]
[367823678,1750936255458,-460.0,0.00018904,2]
[367823679,1750936255468,-460.0,0.00018904,2]
[367823680,1750936255478,-382.28871113,0.00018904,2]
[367823681,1750936255487,-1583.9,0.00018904,2]
[367823682,1750936255496,-460.0,0.00018904,2]
[367823683,1750936255506,-1308.06,0.00018904,2]
[367823684,1750936255516,-1242.42,0.00018904,2]
[367823685,1750936255525,-630.68,0.00018904,2]
[367823686,1750936255534,-460.0,0.00018904,2]
[367823687,1750936255544,-460.0,0.00018904,2]
[367823688,1750936255555,-989.78,0.00018904,2]
[367823689,1750936255564,-460.0,0.00018904,2]
[367823690,1750936255573,-531.49,0.00018904,2]
[367823691,1750936255582,-460.0,0.00018904,2]
[367823692,1750936255592,-460.0,0.00018904,2]
[367823693,1750936255602,-460.0,0.00018904,2]
[367823694,1750936255612,-2974.27,0.00018904,2]
[367823695,1750936255622,-460.0,0.00018904,2]
[367823696,1750936255631,-479.01,0.00018904,2]
[367823697,1750936255641,-922.68,0.00018904,2]
[367823698,1750936255650,-1630.67,0.00018904,2]
[367823699,1750936255659,-497.3,0.00018904,2]
[367823700,1750936255669,-694.28,0.00018904,2]
[367823701,1750936255678,-460.0,0.00018904,2]
[367823702,1750936255688,-460.0,0.00018904,2]
[367823703,1750936255698,-399.58324118,0.00018904,2]
[367823704,1750936255708,-489.26,0.00018904,2]
[367823705,1750936255717,-640.74,0.00018904,2]
[367823706,1750936255727,-1849.57,0.00018904,2]
[367823707,1750936255736,-1090.54,0.00018904,2]
[367823708,1750936255746,-460.0,0.00018904,2]
[367823709,1750936255755,-460.0,0.00018904,2]
[367823710,1750936255766,-2004.58161438,0.00019107,2]
[367823711,1750936255775,-562.03175403,0.00019177,2]
[367823712,1750936255784,-500.0,0.00019177,2]
[367823713,1750936255794,-175.76195535,0.00019177,2]
[367823714,1750936255803,-500.0,0.00019177,2]
[367823715,1750936255812,-500.0,0.00019177,2]
[367823716,1750936255822,-460.0,0.00019178,2]
[367823717,1750936255832,-460.0,0.00019178,2]
[367823718,1750936255841,-476.93,0.00019178,2]
[367823719,1750936255851,-472.30584246,0.00019178,2]
[367823720,1750936255860,-460.0,0.00019178,2]
[367823721,1750936255870,-460.0,0.00019178,2]
[367823722,1750936255880,-460.0,0.00019178,2]
[367823723,1750936255890,-460.0,0.00019178,2]
[367823724,1750936255899,-460.0,0.00019178,2]
[367823725,1750936255909,-460.0,0.00019178,2]
[367823726,1750936255918,-597.38,0.00019178,2]
[367823727,1750936255928,-460.0,0.00019178,2]
[367823728,1750936255937,-460.0,0.00019178,2]
[367823729,1750936255947,-460.0,0.00019178,2]
[367823730,1750936255957,-402.77,0.00019178,2]
[367823731,1750936255966,-460.0,0.00019178,2]
[367823732,1750936255976,-463.0,0.00019178,2]
[367823733,1750936255985,-3070.64,0.00019178,2]
[367823734,1750936255995,-460.0,0.00019178,2]
[367823735,1750936256004,-1127.46,0.00019178,2]
[367823736,1750936256015,-500.1,0.00019178,2]
[367823737,1750936256024,-460.0,0.00019178,2]
[367823738,1750936256033,-486.34,0.00019178,2]
[367823739,1750936256043,-460.0,0.00019178,2]
[367823740,1750936256053,-502.15,0.00019178,2]
[367823741,1750936256062,-741.01,0.00019178,2]
[367823742,1750936256071,-460.0,0.00019178,2]
[367823743,1750936256081,-585.48,0.00019178,2]
[367823744,1750936256090,-460.0,0.00019178,2]
[367823745,1750936256099,-1171.0,0.00019178,2]
[367823746,1750936256108,-1274.93,0.00019178,2]
[367823747,1750936256117,-460.0,0.00019178,2]
[367823748,1750936256128,-1936.68,0.00019178,2]
[367823749,1750936256138,-658.14,0.00019178,2]
[367823750,1750936256148,-460.0,0.00019178,2]
[367823751,1750936256157,-495.95,0.00019178,2]
[367823752,1750936256167,-460.0,0.00019178,2]
[367823753,1750936256177,-506.76,0.00019178,2]
[367823754,1750936256186,-660.59,0.00019178,2]
[367823755,1750936256196,-460.0,0.00019178,2]
[367823756,1750936256206,-604.08,0.00019178,2]
[367823757,1750936256215,-2008.32,0.00019178,2]
[367823758,1750936256225,-461.68,0.00019178,2]
[367823759,1750936256234,-2634.32,0.00019178,2]
[367823760,1750936256246,-936.25,0.00019178,2]
[367823761,1750936256255,-1291.06,0.00019178,2]
[367823762,1750936256267,-461.71,0.00019178,2]
[367823763,1750936256277,-460.0,0.00019178,2]
[367823764,1750936256287,-982.95,0.00019178,2]
[367823765,1750936256296,-460.0,0.00019178,2]
[367823766,1750936256306,-460.0,0.00019178,2]
[367823767,1750936256315,-460.0,0.00019178,2]
[367823768,1750936256325,-1441.22,0.00019178,2]
[367823769,1750936256335,-460.0,0.00019178,2]
[367823770,1750936256345,-460.0,0.00019178,2]
[367823771,1750936256355,-1583.9,0.00019178,2]
[367823772,1750936256365,-460.0,0.00019178,2]
[367823773,1750936256374,-1308.06,0.00019178,2]
[367823774,1750936256383,-1242.42,0.00019178,2]
[367823775,1750936256393,-630.68,0.00019178,2]
[367823776,1750936256403,-460.0,0.00019178,2]
[367823777,1750936256413,-460.0,0.00019178,2]
[367823778,1750936256423,-989.78,0.00019178,2]
[367823779,1750936256432,-460.0,0.00019178,2]
[367823780,1750936256441,-531.49,0.00019178,2]
[367823781,1750936256451,-460.0,0.00019178,2]
[367823782,1750936256461,-460.0,0.00019178,2]
[367823783,1750936256470,-460.0,0.00019178,2]
[367823784,1750936256480,-2974.27,0.00019178,2]
[367823785,1750936256490,-460.0,0.00019178,2]
[367823786,1750936256499,-479.01,0.00019178,2]
[367823787,1750936256509,-922.68,0.00019178,2]
[367823788,1750936256519,-1630.67,0.00019178,2]
[367823789,1750936256528,-497.3,0.00019178,2]
[367823790,1750936256538,-694.28,0.00019178,2]
[367823791,1750936256548,-460.0,0.00019178,2]
[367823792,1750936256558,-460.0,0.00019178,2]
[367823793,1750936256567,-489.26,0.00019178,2]
[367823794,1750936256577,-640.74,0.00019178,2]
[367823795,1750936256587,-1849.57,0.00019178,2]
[367823796,1750936256596,-1090.54,0.00019178,2]
[367823797,1750936256606,-460.0,0.00019178,2]
[367823798,1750936256615,-460.0,0.00019178,2]
[367823799,1750936256625,-557.77139467,0.00019212,2]
[367823800,1750936256634,-151.0,0.000193,2]
[367823801,1750936256644,-406.0,0.00019318,2]
[367823802,1750936256654,-2004.58161438,0.00019348,2]
[367823803,1750936256664,-500.0,0.0001935,2]
[367823804,1750936256674,-500.0,0.0001935,2]
[367823805,1750936256683,-500.0,0.0001937,2]
[367823806,1750936256692,-500.0,0.0001941,2]
[367823807,1750936256702,-460.0,0.00019452,2]
[367823808,1750936256712,-476.93,0.00019452,2]
[367823809,1750936256722,-460.0,0.00019452,2]
[367823810,1750936256731,-460.0,0.00019452,2]
[367823811,1750936256741,-460.0,0.00019452,2]
[367823812,1750936256751,-460.0,0.00019452,2]
[367823813,1750936256760,-602.44,0.00019452,2]
[367823814,1750936256769,-597.38,0.00019452,2]
[367823815,1750936256778,-460.0,0.00019452,2]
[367823816,1750936256788,-167.56020435,0.00019452,2]
[367823817,1750936256798,-460.0,0.00019452,2]
[367823818,1750936256809,-460.0,0.00019452,2]
[367823819,1750936256975,-463.0,0.00019452,2]
[367823820,1750936256986,-3070.64,0.00019452,2]
[367823821,1750936256997,-460.0,0.00019452,2]
[367823822,1750936257008,-1127.46,0.00019452,2]
[367823823,1750936257017,-500.1,0.00019452,2]
[367823824,1750936257027,-460.0,0.00019452,2]
[367823825,1750936257037,-486.34,0.00019452,2]
[367823826,1750936257047,-460.0,0.00019452,2]
[367823827,1750936257057,-502.15,0.00019452,2]
[367823828,1750936257068,-741.01,0.00019452,2]
[367823829,1750936257078,-460.0,0.00019452,2]
[367823830,1750936257088,-585.48,0.00019452,2]
[367823831,1750936257097,-460.0,0.00019452,2]
[367823832,1750936257106,-1171.0,0.00019452,2]
[367823833,1750936257116,-1274.93,0.00019452,2]
[367823834,1750936257125,-460.0,0.00019452,2]
[367823835,1750936257135,-1936.68,0.00019452,2]
[367823836,1750936257144,-460.0,0.00019452,2]
[367823837,1750936257154,-658.14,0.00019452,2]
[367823838,1750936257163,-495.95,0.00019452,2]
[367823839,1750936257173,-460.0,0.00019452,2]
[367823840,1750936257182,-506.76,0.00019452,2]
[367823841,1750936257192,-660.59,0.00019452,2]
[367823842,1750936257201,-460.0,0.00019452,2]
[367823843,1750936257211,-604.08,0.00019452,2]
[367823844,1750936257220,-2008.32,0.00019452,2]
[367823845,1750936257229,-461.68,0.00019452,2]
[367823846,1750936257241,-2634.32,0.00019452,2]
[367823847,1750936257252,-936.25,0.00019452,2]
[367823848,1750936257262,-1291.06,0.00019452,2]
[367823849,1750936257273,-461.71,0.00019452,2]
[367823850,1750936257283,-460.0,0.00019452,2]
[367823851,1750936257294,-982.95,0.00019452,2]
[367823852,1750936257304,-460.0,0.00019452,2]
[367823853,1750936257315,-460.0,0.00019452,2]
[367823854,1750936257326,-460.0,0.00019452,2]
[367823855,1750936257336,-1441.22,0.00019452,2]
[367823856,1750936257346,-460.0,0.00019452,2]
[367823857,1750936257356,-460.0,0.00019452,2]
[367823858,1750936257366,-1583.9,0.00019452,2]
[367823859,1750936257376,-475.92934072,0.00019452,2]
[367823860,1750936257387,-1308.06,0.00019452,2]
[367823861,1750936257398,-1242.42,0.00019452,2]
[367823862,1750936257409,-630.68,0.00019452,2]
[367823863,1750936257419,-460.0,0.00019452,2]
[367823864,1750936257429,-460.0,0.00019452,2]
[367823865,1750936257440,-989.78,0.00019452,2]
[367823866,1750936257450,-460.0,0.00019452,2]
[367823867,1750936257461,-531.49,0.00019452,2]
[367823868,1750936257473,-460.0,0.00019452,2]
[367823869,1750936257482,-460.0,0.00019452,2]
[367823870,1750936257491,-460.0,0.00019452,2]
[367823871,1750936257500,-2974.27,0.00019452,2]
[367823872,1750936257510,-460.0,0.00019452,2]
[367823873,1750936257519,-479.01,0.00019452,2]
[367823874,1750936257528,-922.68,0.00019452,2]
[367823875,1750936257537,-1630.67,0.00019452,2]
[367823876,1750936257547,-497.3,0.00019452,2]
[367823877,1750936257557,-460.0,0.00019452,2]
[367823878,1750936257566,-694.28,0.00019452,2]
[367823879,1750936257576,-460.0,0.00019452,2]
[367823880,1750936257586,-489.26,0.00019452,2]
[367823881,1750936257595,-640.74,0.00019452,2]
[367823882,1750936257605,-1849.57,0.00019452,2]
[367823883,1750936257614,-1090.54,0.00019452,2]
[367823884,1750936257623,-444.72917435,0.00019452,2]
[367823885,1750936257633,-460.0,0.00019452,2]
[367823886,1750936257642,-168.0,0.00019497,2]
[367823887,1750936257652,-7159.60702,0.00019589,2]
[367823888,1750936257662,-2004.58161438,0.0001959,2]
[367823889,1750936257671,-154.30026337,0.0001959,2]
[367823890,1750936257681,-388.0,0.0001959,2]
[367823891,1750936257691,-500.0,0.0001959,2]
[367823892,1750936257701,-5000.0,0.0001959,2]
[367823893,1750936257710,-500.0,0.0001959,2]
[367823894,1750936257720,-500.0,0.0001959,2]
[367823895,1750936257729,-207.4,0.0001959,2]
[367823896,1750936257738,-500.0,0.0001959,2]
[367823897,1750936257747,-151.0,0.0001959,2]
[367823898,1750936257756,-151.0,0.0001959,2]
[367823899,1750936257766,-151.0,0.0001959,2]
[367823900,1750936257776,-151.0,0.0001959,2]
[367823901,1750936257785,-151.0,0.0001959,2]
[367823902,1750936257795,-151.0,0.0001959,2]
[367823903,1750936257804,-500.0,0.0001959,2]
[367823904,1750936257814,-151.0,0.0001959,2]
[367823905,1750936257823,-151.0,0.0001959,2]
[367823906,1750936257833,-1880.25511664,0.0001959,2]
[367823907,1750936257842,-151.0,0.0001959,2]
[367823908,1750936257851,-500.0,0.0001959,2]
[367823909,1750936257863,-273.74990888,0.0001959,2]
[367823910,1750936257874,-151.0,0.0001959,2]
[367823911,1750936257884,-151.0,0.0001959,2]
[367823912,1750936257895,-500.0,0.0001959,2]
[367823913,1750936257906,-151.0,0.0001959,2]
[367823914,1750936257915,-500.0,0.0001959,2]
[367823915,1750936257924,-500.0,0.0001959,2]
[367823916,1750936257934,-151.0,0.0001959,2]
[367823917,1750936257943,-500.0,0.0001959,2]
[367823918,1750936257952,-151.0,0.0001959,2]
[367823919,1750936257961,-151.0,0.0001959,2]
[367823920,1750936257971,-500.0,0.0001959,2]
[367823921,1750936257980,-151.0,0.0001959,2]
[367823922,1750936257989,-151.0,0.0001959,2]
[367823923,1750936257998,-500.0,0.0001959,2]
[367823924,1750936258007,-151.0,0.0001959,2]
[367823925,1750936258017,-500.0,0.0001959,2]
[367823926,1750936258026,-500.0,0.0001959,2]
[367823927,1750936258036,-151.0,0.0001959,2]
[367823928,1750936258045,-500.0,0.0001959,2]
[367823929,1750936258055,-151.0,0.0001959,2]
[367823930,1750936258064,-500.0,0.0001959,2]
[367823931,1750936258074,-151.0,0.0001959,2]
[367823932,1750936258083,-151.0,0.0001959,2]
[367823933,1750936258093,-500.0,0.0001959,2]
[367823934,1750936258103,-151.0,0.0001959,2]
[367823935,1750936258112,-500.0,0.0001959,2]
[367823936,1750936258121,-151.0,0.0001959,2]
[367823937,1750936258131,-500.0,0.0001959,2]
[367823938,1750936258140,-151.0,0.0001959,2]
[367823939,1750936258150,-500.0,0.0001959,2]
[367823940,1750936258159,-151.0,0.0001959,2]
[367823941,1750936258169,-500.0,0.0001959,2]
[367823942,1750936258179,-244.50989766,0.0001959,2]
[367823943,1750936258188,-500.0,0.0001959,2]
[367823944,1750936258198,-500.0,0.0001959,2]
[367823945,1750936258208,-151.0,0.0001959,2]
[367823946,1750936258218,-151.27597907,0.0001959,2]
[367823947,1750936258227,-500.0,0.0001959,2]
[367823948,1750936258236,-500.0,0.0001959,2]
[367823949,1750936258250,-151.0,0.0001959,2]
[367823950,1750936258260,-500.0,0.0001959,2]
[367823951,1750936258270,-500.0,0.0001959,2]
[367823952,1750936258281,-219.65880211,0.0001959,2]
[367823953,1750936258291,-500.0,0.0001959,2]
[367823954,1750936258301,-500.0,0.0001959,2]
[367823955,1750936258310,-500.0,0.0001959,2]
[367823956,1750936258320,-500.0,0.0001959,2]
[367823957,1750936258329,-500.0,0.0001959,2]
[367823958,1750936258339,-500.0,0.0001959,2]
[367823959,1750936258348,-500.0,0.0001959,2]
[367823960,1750936258358,-500.0,0.0001959,2]
[367823961,1750936258367,-500.0,0.0001959,2]
[367823962,1750936258376,-500.0,0.0001959,2]
[367823963,1750936258386,-500.0,0.0001959,2]
[367823964,1750936258395,-500.0,0.0001959,2]
[367823965,1750936258405,-500.0,0.0001959,2]
[367823966,1750936258414,-500.0,0.0001959,2]
[367823967,1750936258424,-25000.0,0.0001959,2]
[367823968,1750936258433,-500.0,0.0001959,2]
[367823969,1750936258442,-500.0,0.0001959,2]
[367823970,1750936258452,-23656.00863629,0.0001959,2]
[367823971,1750936258461,-500.0,0.0001959,2]
[367823972,1750936258471,-500.0,0.0001959,2]
[367823973,1750936258480,-500.0,0.0001959,2]
[367823974,1750936258489,-193.91835657,0.0001959,2]
[367823975,1750936258499,-151.0,0.000196,2]
[367823976,1750936258508,-587.0,0.00019631,2]
[367823977,1750936258518,-187.70087121,0.00019644,2]
[367823978,1750936258527,-402.356,0.00019645,2]
[367823979,1750936258537,-417.243172,0.000197,2]
[367823980,1750936258546,-966.0,0.00019712,2]
[367823981,1750936258555,-2161.0,0.00019712,2]
[367823982,1750936258565,-654.0,0.00019712,2]
[367823983,1750936258574,-460.0,0.00019726,2]
[367823984,1750936258583,-476.93,0.00019726,2]
[367823985,1750936258592,-460.0,0.00019726,2]
[367823986,1750936258601,-460.0,0.00019726,2]
[367823987,1750936258610,-460.0,0.00019726,2]
[367823988,1750936258620,-460.0,0.00019726,2]
[367823989,1750936258629,-597.38,0.00019726,2]
[367823990,1750936258638,-460.0,0.00019726,2]
[367823991,1750936258647,-506.24604461,0.00019726,2]
[367823992,1750936258656,-3070.64,0.00019726,2]
[367823993,1750936258666,-463.0,0.00019726,2]
[367823994,1750936258675,-460.0,0.00019726,2]
[367823995,1750936258685,-1127.46,0.00019726,2]
[367823996,1750936258695,-500.1,0.00019726,2]
[367823997,1750936258704,-460.0,0.00019726,2]
[367823998,1750936258714,-486.34,0.00019726,2]
[367823999,1750936258723,-460.0,0.00019726,2]
[367824000,1750936258733,-502.15,0.00019726,2]
[367824001,1750936258742,-741.01,0.00019726,2]
[367824002,1750936258751,-585.48,0.00019726,2]
[367824003,1750936258760,-460.0,0.00019726,2]
[367824004,1750936258771,-460.0,0.00019726,2]
[367824005,1750936258781,-1171.0,0.00019726,2]
[367824006,1750936258790,-1274.93,0.00019726,2]
[367824007,1750936258801,-460.0,0.00019726,2]
[367824008,1750936258811,-1936.68,0.00019726,2]
[367824009,1750936258821,-460.0,0.00019726,2]
[367824010,1750936258831,-658.14,0.00019726,2]